Cogmind - Beta 16.1 @@@ ROGUE MODE // 2026.03.21 @ 14:38:15 Player: APerTAS Result: Self-destructed Performance ------------- Evolutions (5) 2500 Regions Visited (8) 1600 Robots Destroyed (23) 115 Value Destroyed (765) 765 Prototype IDs (1) 20 Alien Tech Used (0) 0 Bonus (1325) 1325 TOTAL SCORE: 6325 Bonus ------- Pacifist 1325 Cogmind --------- Core Integrity 814/1000 Matter 90/300 Energy 150/150 System Corruption 2% Temperature Cool (0) Movement Core (200) Ox3 Location -5/Factory Parts ------- > --- POWER (1) -------- Light Angular Momentum Engine > --- PROPULSION (4) --- (None) > --- UTILITY (10) ----- Advanced Heat Sink Improved Signal Interpreter Target Analyzer Target Analyzer Core Analyzer > --- WEAPON (2) ------- (None) > --- INVENTORY (5) ---- Hardcell Cannon Maul Peak State ------------ > --- POWER ------------ Light Angular Momentum Engine > --- PROPULSION ------- Wheel Compact Wheel > --- UTILITY ---------- Improved Heat Sink Improved Signal Interpreter Target Analyzer Target Analyzer Core Analyzer > --- WEAPON ----------- Hardcell Cannon Hardcell Cannon > --- INVENTORY -------- Shock Rifle Maul [Rating: 37] Favorites ----------- Power Micro Nuclear Core Engine Light Angular Momentum Engine Power Core Micro Nuclear Core Propulsion Xenon Bombardment Thruster Wheel Compact Wheel Hover Unit Gravmag System Flight Unit Xenon Bombardment Thruster Utility Target Analyzer Device Seismic Detector Storage Humpback Processor Target Analyzer Protection Propulsion Shielding Weapon Maul Energy Gun Shock Rifle Ballistic Gun High-powered Shotgun Ballistic Cannon Hardcell Cannon Impact Weapon Maul Slashing Weapon Ripper Build | -11 -10 -9 -8 -7 -6 -6 -6 -5 ------- Run | Yrd Mat Mat Mat Fac Fac Low Low Fac Slots Evolved 10 | . . 2 2 2 2 . . 2 Power . | . . . . . . . . . Propulsion 2 | . . . . . . . . 2 Utility 8 | . . 2 2 2 2 . . . Weapon . | . . . . . . . . . Parts Attached 42 | . 2 2 6 . 7 11 . 14 Power 2 | . . . 1 . . . . 1 Engine 1 | . . . . . . . . 1 Core 1 | . . . 1 . . . . . Reactor . | . . . . . . . . . Propulsion 7 | . . . 2 . . 3 . 2 Treads . | . . . . . . . . . Leg . | . . . . . . . . . Wheel 3 | . . . . . . 1 . 2 Hover 1 | . . . . . . 1 . . Flight 3 | . . . 2 . . 1 . . Utility 26 | . 2 2 3 . 6 5 . 8 Device 16 | . 2 2 3 . 2 1 . 6 Storage 1 | . . . . . . 1 . . Processor 7 | . . . . . 3 2 . 2 Hackware . | . . . . . . . . . Protection 2 | . . . . . 1 1 . . Artifact . | . . . . . . . . . Weapon 7 | . . . . . 1 3 . 3 Energy Gun 2 | . . . . . . 1 . 1 Energy Cannon . | . . . . . . . . . Ballistic Gun 1 | . . . . . . 1 . . Ballistic Cannon 2 | . . . . . . . . 2 Launcher . | . . . . . . . . . Special Weapon . | . . . . . . . . . Impact Weapon 1 | . . . . . 1 . . . Slashing Weapon 1 | . . . . . . 1 . . Piercing Weapon . | . . . . . . . . . Special Melee Weapon . | . . . . . . . . . Unidentified Prototypes 1 | . . . . . . 1 . . Parts Lost 19 | . . . . . . 7 7 5 Power 1 | . . . . . . 1 . . Propulsion 6 | . . . . . . 2 2 2 Utility 8 | . . . . . . 4 3 1 Weapon 4 | . . . . . . . 2 2 Highest Loss Streak 6 | . . . . . . 6 5 4 To Critical Strikes . | . . . . . . . . . Average Backups 3 | . . 3 . . 1 4 5 3 Power . | . . . . . . 1 1 . Propulsion . | . . . . . . . . . Utility . | . . 3 . . . 1 1 . Weapon 1 | . . . . . . 2 3 2 Tool/Special . | . . . . . . . . . Unused Backups 2 | . . . . . 1 . . 1 Power . | . . . . . . . . . Propulsion . | . . . . . . . . . Utility 1 | . . . . . 1 . . . Weapon 1 | . . . . . . . . 1 Tool/Special . | . . . . . . . . . Average Slot Usage (%) 39 | . 4 42 30 23 50 54 29 31 Core 2 | . . . 2 7 6 1 . . Wheel 1 | . . . . . . 2 . 2 Flight 4 | . . . 6 15 12 4 . . Device 7 | . 4 42 22 . 6 3 . 4 Processor 13 | . . . . . 14 20 19 15 Protection 3 | . . . . . 4 8 1 . Ballistic Gun 1 | . . . . . . 3 5 . Impact Weapon 1 | . . . . . 4 2 . . Peak Build Rating 37 | . 2 4 12 12 36 36 26 37 Average Rating 19 | . . 3 6 12 26 24 13 20 On Entrance 11 | . . 2 4 12 12 36 26 7 Avg Prop Armor Cover (%) 5 | . . . . 21 . 4 . . Naked Turns 70 | . 47 . 23 . . . . . Heaviest Build 214 | . 2 4 6 6 12 214 3 30 Greatest Support 26 | 3 3 3 12 12 12 16 3 26 Greatest Overweight (x) 13 | . . 1 1 1 . 13 . 2 Average Overweight (x) . | . . 1 . . . . . . Largest Inventory Capacity 35 | 5 5 5 5 5 5 35 5 5 Average Capacity 5 | 5 5 5 5 5 5 6 5 5 Most Carried 5 | . 5 4 2 . 5 5 5 5 Average Carried 3 | . 1 3 . . 1 4 5 3 Final Capacity 5 | 5 5 5 5 5 5 5 5 5 Final Carried 5 | . 5 3 . . 5 5 5 2 Class Distribution -------------------- 92% | Mutant Dominant Class ---------------- Mutant | -10/Materials Mutant | -9/Materials Mutant | -8/Materials Mutant | -7/Factory Mutant | -6/Factory Mutant | -6/Lower Caves Mutant | -6/Lower Caves Mutant | -5/Factory Resources | -11 -10 -9 -8 -7 -6 -6 -6 -5 ----------- Run | Yrd Mat Mat Mat Fac Fac Low Low Fac Matter Collected 804 | . 69 . . . 172 236 104 223 Remotely . | . . . . . . . . . Salvage Created 930 | . . . . . 215 316 126 273 Parts 39 | . . . . . 11 6 5 17 Haulers Intercepted . | . . . . . . . . . Recyclers Shooed 2 | . . . . . . . . 2 Parts Field Recycled . | . . . . . . . . . Retrieved Matter . | . . . . . . . . . Parts Self-Destructed 8 | . . . . . . 3 5 . Prevented . | . . . . . . . . . Parts Restored . | . . . . . . . . . Kills | -11 -10 -9 -8 -7 -6 -6 -6 -5 ------- Run | Yrd Mat Mat Mat Fac Fac Low Low Fac Combat Hostiles Destroyed 19 | . . . . . 2 4 4 9 Melee 2 | . . . . . 1 1 . . Guns 6 | . . . . . . 1 4 1 Cannons 8 | . . . . . . . . 8 AOE 1 | . . . . . 1 . . . Classes Destroyed 7 | . . . . . 4 1 1 1 Worker 3 | . . . . . 1 . . 2 Recycler 1 | . . . . . 1 . . . Swarmer 12 | . . . . . . 3 4 5 Grunt 3 | . . . . . . . . 3 Sentry 2 | . . . . . 1 . . 1 Programmer 2 | . . . . . 1 1 . . Packrat 3 | . . . . . . 3 . . Samaritan 2 | . . . . . . . 2 . Best Kill Streak 7 | . . . . . 2 3 3 7 Combat Bots Only 5 | . . . . . 1 3 3 5 Max Kills in Single Turn 2 | . . . . . 2 1 2 2 Gunslinging . | . . . . . . . . . Exploded 1 | . . . . . 1 . . . Melee 1 | . . . . . 1 1 . . Uniques/NPCs Destroyed . | . . . . . . . . . Combat | -11 -10 -9 -8 -7 -6 -6 -6 -5 -------- Run | Yrd Mat Mat Mat Fac Fac Low Low Fac Hostile Shots Fired 268 | . . 13 18 . 24 95 54 64 Missed 105 | . . 2 10 . 9 39 18 27 Hits 163 | . . 11 8 . 15 56 36 37 Projectile 163 | . . 11 8 . 15 56 36 37 Critical Strikes 4 | . . 1 1 . . . . 2 Damage Taken 2578 | . . 160 115 1 117 872 599 714 Core 1126 | . . 129 73 . 40 385 313 186 Absorbed by Shields 3 | . . . . . . 3 . . Redirected to Shielding 51 | . . . . . 9 29 13 . Ignored by Resistances 23 | . . . . . 16 7 . . Regen/Repaired (Parts) 27 | . . . . . 27 . . . Core Remaining (%) 77 | 100 100 67 86 100 . . 13 . Volleys Fired 63 | . . . . . . 1 32 30 Largest 2 | . . . . . . 1 1 2 Hottest 110 | . . . . . . 25 25 110 Shots Fired 88 | . . . . . . 1 32 55 Gun 44 | . . . . . . 1 32 11 Cannon 44 | . . . . . . . . 44 Launcher . | . . . . . . . . . Special . | . . . . . . . . . Kinetic 77 | . . . . . . 1 32 44 Thermal . | . . . . . . . . . Explosive . | . . . . . . . . . Electromagnetic 11 | . . . . . . . . 11 Robot Hit Streak 8 | . . . . . . 2 6 8 Robot Miss Streak 5 | . . . . . . . 5 3 Penetration Max . | . . . . . . . . . Secondary Targets . | . . . . . . . . . Shots Hit Robots 64 | . . . . . 3 9 19 33 Core Hits 36 | . . . . 1 3 1 13 18 Critical Kills 2 | . . . . . 1 1 . . Critical Parts Destroyed 6 | . . . . . . 3 3 . Critical Strikes 12 | . . . . . 1 4 3 4 Destroy 4 | . . . . . . 1 3 . Blast 4 | . . . . . . . . 4 Smash 4 | . . . . . 1 3 . . Melee Attacks 35 | . . . . . 14 15 . 6 Impact 35 | . . . . . 14 15 . 6 Slashing . | . . . . . . . . . Piercing . | . . . . . . . . . Sneak Attacks 2 | . . . . . 1 1 . . Combat Hostiles . | . . . . . . . . . Follow-up Attacks . | . . . . . . . . . Damage Inflicted 2312 | . 1 3 . 2 323 360 395 1228 Guns 521 | . . . . . . 11 395 115 Cannons 1113 | . . . . . . . . 1113 Explosions 192 | . . . . . 192 . . . Melee 480 | . . . . . 131 349 . . Ramming 6 | . 1 3 . 2 . . . . Kinetic 1519 | . . . . . . 11 395 1113 Thermal 192 | . . . . . 192 . . . Explosive . | . . . . . . . . . Electromagnetic 115 | . . . . . . . . 115 Impact 480 | . . . . . 131 349 . . Slashing . | . . . . . . . . . Piercing . | . . . . . . . . . Highest Corruption 5 | . . 1 . 5 . . . 2 Average Corruption 2 | . . 1 . 4 . . . 1 Corruption Purged . | . . . . . . . . . Corruption Blocked . | . . . . . . . . . Effects 2 | . . . . 2 . . . . Heat Flow Errors 2 | . . . . 2 . . . . Overload Shots . | . . . . . . . . . Overflow Damage 277 | . . . . . 28 233 . 16 Projectiles 16 | . . . . . . . . 16 Explosions . | . . . . . . . . . Melee 261 | . . . . . 28 233 . . Knockbacks 9 | . . . . 1 1 1 . 6 Impact 3 | . . . . 1 1 1 . . Kinetic 6 | . . . . . . . . 6 Secondary . | . . . . . . . . . Self-Inflicted Damage 2 | . . 1 . 1 . . . . Shots . | . . . . . . . . . Rammed 6 | . 1 4 . 1 . . . . Targets Rammed 6 | . 1 4 . 1 . . . . Kicked . | . . . . . . . . . Crushed . | . . . . . . . . . Highest Temperature 261 | . . . . 261 . . . 35 Average Temperature 103 | . . . . 134 . . . 18 Received Heat Transfer 477 | . . 75 63 . 36 48 12 243 Siege Activations . | . . . . . . . . . Martial Activations . | . . . . . . . . . Shielding Activations . | . . . . . . . . . Robots Disrupted . | . . . . . . . . . Combat Hostiles . | . . . . . . . . . Robots Corrupted 5 | . . . . . 1 4 . . Combat Hostiles 2 | . . . . . . 2 . . Parts Fried 5 | . . . . . 3 2 . . Impact Corruptions 9 | . . . . . 1 8 . . Robots Melted . | . . . . . . . . . Combat Hostiles . | . . . . . . . . . Parts Melted . | . . . . . . . . . Heat Transferred 100 | . . . . . 100 . . . Parts Sabotaged . | . . . . . . . . . Parts Stolen . | . . . . . . . . . Parts Stripped . | . . . . . . . . . Power Chain Reactions 2 | . . . . . 1 . . 1 Alert | -11 -10 -9 -8 -7 -6 -6 -6 -5 ------- Run | Yrd Mat Mat Mat Fac Fac Low Low Fac Maximum Alert Level 1 | . . . . . . . . 1 Low Security (%) 89 | 100 100 100 100 100 100 . . 74 Level 1 10 | . . . . . . . . 25 Level 2 . | . . . . . . . . . Level 3 . | . . . . . . . . . Level 4 . | . . . . . . . . . Level 5 . | . . . . . . . . . High Security . | . . . . . . . . . Max Security . | . . . . . . . . . Peak Influence 267 | . . 14 5 40 172 . . 267 Initial 9 | . . . 5 . 9 . . . Average 67 | . . 1 1 23 102 . . 81 Influence Increases 963 | . . 29 . 50 274 105 90 415 Destroy 0b10 Robot/C 380 | . . . . . 40 80 80 180 Destroy 0b10 Robot/NC 20 | . . . . . 10 . . 10 Destroy Leader 60 | . . . . . 20 10 10 20 Successful Hack 61 | . . 14 . . 39 . . 8 Select Force Hacks 150 | . . . . 50 50 . . 50 Disable Machine 60 | . . . . . 60 . . . Destroy Structure 67 | . . . . . 25 . . 42 Partial Spotted 15 | . . . . . 15 . . . Lose Combat Pursuer 150 | . . 15 . . 15 15 . 105 Influence Decreases 722 | . . 14 15 30 155 244 90 174 Entered New Map 73 | . . . 10 . 11 52 . . Time Decay 512 | . . 14 5 30 144 135 60 124 Lost Part 137 | . . . . . . 57 30 50 Squads Dispatched 13 | . . 2 2 1 6 . . 2 Investigation 8 | . . 2 1 1 3 . . 1 Extermination 2 | . . . . . 1 . . 1 Reinforcement 3 | . . . 1 . 2 . . . Assault . | . . . . . . . . . Garrison . | . . . . . . . . . Intercept . | . . . . . . . . . Searches Triggered . | . . . . . . . . . Construction Impeded . | . . . . . . . . . Haulers Reinforced . | . . . . . . . . . Active Scanning Responses . | . . . . . . . . . Cargo Convoy Interrupts . | . . . . . . . . . Stealth | -11 -10 -9 -8 -7 -6 -6 -6 -5 --------- Run | Yrd Mat Mat Mat Fac Fac Low Low Fac Distress Signals 4 | . . 1 2 . . . . 1 Communications Jammed . | . . . . . . . . . Distress Signals . | . . . . . . . . . Times Spotted 62 | . . 7 12 3 6 7 6 21 Peak Tracking Total 12 | . . 6 12 3 2 5 4 6 Tactical Retreats 7 | . . 1 . . 1 1 . 4 Traps | -11 -10 -9 -8 -7 -6 -6 -6 -5 ------- Run | Yrd Mat Mat Mat Fac Fac Low Low Fac Traps Triggered . | . . . . . . . . . Indirectly . | . . . . . . . . . Trap Hack Attempts . | . . . . . . . . . Triggered . | . . . . . . . . . Disarmed . | . . . . . . . . . Reprogrammed . | . . . . . . . . . Reused . | . . . . . . . . . Traps Extracted . | . . . . . . . . . Installed . | . . . . . . . . . Triggered . | . . . . . . . . . Objects Rigged 6 | . . . . . 6 . . . Exploded 1 | . . . . . 1 . . . Machines | -11 -10 -9 -8 -7 -6 -6 -6 -5 ---------- Run | Yrd Mat Mat Mat Fac Fac Low Low Fac Machines Disabled 4 | . . . . . 4 . . . Max in Single Turn 3 | . . . . . 3 . . . Machines Repaired . | . . . . . . . . . Machines Dismantled . | . . . . . . . . . Machines Sabotaged . | . . . . . . . . . Overloaded Fab Kills 4 | . . . . 1 3 . . . Hacking | -11 -10 -9 -8 -7 -6 -6 -6 -5 --------- Run | Yrd Mat Mat Mat Fac Fac Low Low Fac Machines Accessed 14 | . . 2 2 1 7 . . 2 Terminals 9 | . . 2 2 . 4 . . 1 Fabricators 3 | . . . . 1 1 . . 1 Repair Stations 1 | . . . . . 1 . . . Recycling Units 1 | . . . . . 1 . . . Scanalyzers . | . . . . . . . . . Garrison Access . | . . . . . . . . . Total Hacks 34 | . . 7 5 2 16 . . 4 Successful 14 | . . 2 . 1 7 . . 4 Failed 19 | . . 4 5 1 9 . . . Catastrophic 8 | . . 2 2 . 4 . . . Database Lockouts 1 | . . 1 . . . . . . Manual 29 | . . 13 5 2 8 . . 1 Terminals 22 | . . 7 5 . 8 . . 2 Fabricators 6 | . . . . 2 2 . . 2 Repair Stations 4 | . . . . . 4 . . . Recycling Units 2 | . . . . . 2 . . . Scanalyzers . | . . . . . . . . . Garrison Access . | . . . . . . . . . Terminal Hacks 5 | . . 2 . . 1 . . 2 Record 2 | . . . . . . . . 2 Part Schematic 2 | . . 2 . . . . . . Branch Access Points 1 | . . . . . 1 . . . Fabricator Hacks 1 | . . . . . . . . 1 Build 1 | . . . . . . . . 1 Repair Station Hacks 3 | . . . . . 3 . . . Scan Component 2 | . . . . . 2 . . . Repair 1 | . . . . . 1 . . . Recycling Unit Hacks . | . . . . . . . . . Scanalyzer . | . . . . . . . . . Garrison Access Hacks . | . . . . . . . . . Unauthorized Hacks 5 | . . . . 1 3 . . 1 Terminals 2 | . . . . . 2 . . . Botnet 1 | . . . . . 1 . . . Detonate 1 | . . . . . 1 . . . Fabricators 3 | . . . . 1 1 . . 1 Overload 3 | . . . . 1 1 . . 1 Repair Stations . | . . . . . . . . . Recycling Units . | . . . . . . . . . Scanalyzers . | . . . . . . . . . Garrison Access . | . . . . . . . . . Data Cores Recovered . | . . . . . . . . . Used . | . . . . . . . . . Hacking Detections 14 | . . 2 2 1 7 . . 2 Full Trace Events 6 | . . 2 2 . 2 . . . Feedback Events 1 | . . 1 . . . . . . Corruption 1 | . . 1 . . . . . . Feedback Blocked . | . . . . . . . . . Robot Schematics Acquired . | . . . . . . . . . Robots Built . | . . . . . . . . . Authchips . | . . . . . . . . . Time . | . . . . . . . . . Total Robot Build Rating . | . . . . . . . . . Part Schematics Acquired 1 | . . 1 . . . . . . Parts Built 2 | . . . . . . . . 2 Authchips . | . . . . . . . . . Time 117 | . . . . . . . . 117 Total Part Build Rating 14 | . . . . . . . . 14 Part Studies Acquired . | . . . . . . . . . Parts Repaired 1 | . . . . . 1 . . . Time 44 | . . . . . 44 . . . Parts Recycled . | . . . . . . . . . Recycled Matter . | . . . . . . . . . Retrieved Matter . | . . . . . . . . . Retrieved Components . | . . . . . . . . . Parts Scanalyzed . | . . . . . . . . . Part Schematics Acquired . | . . . . . . . . . Parts Damaged . | . . . . . . . . . Bothacking | -11 -10 -9 -8 -7 -6 -6 -6 -5 ------------ Run | Yrd Mat Mat Mat Fac Fac Low Low Fac Used RIF Installer . | . . . . . . . . . Robots Hacked . | . . . . . . . . . Non-combat . | . . . . . . . . . Combat . | . . . . . . . . . Robot Hacks Applied . | . . . . . . . . . Relay Couplers Released . | . . . . . . . . . Fabnet Peak Effective % . | . . . . . . . . . Robots Rewired . | . . . . . . . . . Allies Hacked . | . . . . . . . . . Hacks Repelled . | . . . . . . . . . Allies | -11 -10 -9 -8 -7 -6 -6 -6 -5 -------- Run | Yrd Mat Mat Mat Fac Fac Low Low Fac Total Allies . | . . . . . . . . . Largest Group . | . . . . . . . . . Highest-Rated Group . | . . . . . . . . . Highest-Rated Ally . | . . . . . . . . . Total Orders . | . . . . . . . . . Ally Attacks . | . . . . . . . . . Total Damage . | . . . . . . . . . Kills . | . . . . . . . . . Allies Corrupted . | . . . . . . . . . Allies Melted . | . . . . . . . . . Intel | -11 -10 -9 -8 -7 -6 -6 -6 -5 ------- Run | Yrd Mat Mat Mat Fac Fac Low Low Fac Active Infowar (turns) 513 | . 7 83 26 . 304 93 . . IFF 397 | . . . . . 304 93 . . Seismic 116 | . 7 83 26 . . . . . Robot Analysis Total . | . . . . . . . . . Derelict Logs Recovered . | . . . . . . . . . Drone Launches . | . . . . . . . . . Drone Recoveries . | . . . . . . . . . Exploration | -11 -10 -9 -8 -7 -6 -6 -6 -5 ------------- Run | Yrd Mat Mat Mat Fac Fac Low Low Fac Turns Passed 1572 | 9 54 83 79 66 340 361 137 443 Spaces Moved 1919 | 18 89 78 128 152 610 485 145 214 Core 552 | 18 89 78 58 10 . 2 145 152 Treads . | . . . . . . . . . Legs . | . . . . . . . . . Wheels 188 | . . . . . . 126 . 62 Hover 80 | . . . . . . 80 . . Flight 1099 | . . . 70 142 610 277 . . Fastest Speed 35 | 50 50 100 37 37 37 35 50 50 Average Speed 51 | 50 50 100 48 41 37 59 50 68 Slowest Speed 295 | 50 50 100 100 100 37 295 50 150 Overloaded Moves . | . . . . . . . . . Propulsion Burnouts . | . . . . . . . . . Robots Hopped 7 | . . . 2 4 1 . . . Potential Cave-ins . | . . . . . . . . . Cave-ins Triggered . | . . . . . . . . . Exploration Rate (%) 21 | 4 21 17 19 8 24 78 17 6 Regions Visited 8 Branch Regions 2 Pre-discovered Areas . | . . . . . . . . . Known Exits Taken 2 | . . . . . 1 . 1 . Unknown Exits Taken 6 | 1 1 1 1 1 . 1 . . Scrap Searched 4 | . . . . . . 4 . . Spaces Dug 13 | . . . . . 6 . . 7 Terrain Destroyed 48 | . . . . . 27 . . 21 Melee 12 | . . . . . 6 . . 6 Projectile 15 | . . . . . . . . 15 AOE 21 | . . . . . 21 . . . Terrain Rammed . | . . . . . . . . . Walls Destroyed . | . . . . . . . . . Machines Disabled . | . . . . . . . . . Actions | -11 -10 -9 -8 -7 -6 -6 -6 -5 --------- Run | Yrd Mat Mat Mat Fac Fac Low Low Fac Total 2317 | 17 96 83 140 150 691 524 176 440 Wait 234 | . . . 8 . 54 4 . 168 Move 1899 | 17 88 77 123 145 607 484 144 214 Hop 5 | . . . 2 2 1 . . . Pick Up 16 | . 5 . . . 6 3 . 2 Fast Attach 30 | . 2 . 3 . 8 8 . 9 Attach 11 | . . 2 3 . . 2 . 4 Detach 1 | . . . . . . 1 . . Swap 3 | . . . . . . 1 . 2 Drop 12 | . . . 1 . 1 5 . 5 Fire 63 | . . . . . . 1 32 30 Melee 35 | . . . . . 14 15 . 6 Ram 6 | . 1 4 . 1 . . . . Kick . | . . . . . . . . . Crush . | . . . . . . . . . Escape Stasis . | . . . . . . . . . Rewire 2 | . . . . 2 . . . . Trap . | . . . . . . . . . Miscellaneous . | . . . . . . . . . Route ------- -11/Scrapyard -10/Materials -9/Materials -8/Materials -7/Factory -6/Factory (discovered 3 exits: *Fac / *Low x2) -6/Lower Caves -6/Lower Caves -5/Factory History --------- Turn | Location | Event 4 | -11/Scrapyard | Discovered new exit (range 13) 10 | -11/Scrapyard | Entered Materials 48 | -10/Materials | Discovered new exit (range 9) 64 | -10/Materials | Entered another Materials area 64 | -9/Materials | Evolved 2 slots: Utility x2 100 | -9/Materials | Central database locked down 136 | -9/Materials | Discovered new exit (range 9) 147 | -9/Materials | Entered another Materials area 147 | -8/Materials | Evolved 2 slots: Utility x2 173 | -8/Materials | Released all parts (6) 220 | -8/Materials | Discovered new exit (range 14) 226 | -8/Materials | Entered Factory 226 | -7/Factory | Evolved 2 slots: Utility x2 287 | -7/Factory | Discovered new exit (range 12) 292 | -7/Factory | Entered another Factory area 292 | -6/Factory | Evolved 2 slots: Utility x2 316 | -6/Factory | Build established: Mutant 462 | -6/Factory | Repaired Xenon Bombardment Thruster 488 | -6/Factory | Identified exit to Lower Caves 599 | -6/Factory | Discovered new exit (range 8) 601 | -6/Factory | Identified exit to Factory 632 | -6/Factory | Entered Lower Caves 703 | -6/Lower Caves | Spotted B-75 Beast 764 | -6/Lower Caves | Lost 6 parts (1p2n3u) 972 | -6/Lower Caves | Discovered new exit (range 16) 993 | -6/Lower Caves | Entered another Lower Caves area 997 | -6/Lower Caves | Core integrity fell below 50% 1046 | -6/Lower Caves | Lost 5 parts (2n2u1w) 1099 | -6/Lower Caves | Spotted B-75 Beast 1127 | -6/Lower Caves | Core integrity fell below 20% 1127 | -6/Lower Caves | Discovered exit to Factory (range 6) 1130 | -6/Lower Caves | Entered Factory 1130 | -5/Factory | Evolved 2 slots: Propulsion x2 1324 | -5/Factory | Fabricated Hardcell Cannon (x2) 1573 | -5/Factory | Self-destructed Last Messages --------------- 01552_ Penetrated by Slug. 01553_ Y-64 Sentinel KE Penetrator blasted off. 01553_ U-05 Engineer builds a Wall. 01554_ K-01 Serf collects debris. 01558_ Wheel destroyed. 01559_ U-05 Engineer builds a Wall. 01560_ K-01 Serf cleans the Neutrino Reactor. 01562_ Imp. Heat Sink destroyed. 01564_ P-70 Sage resets Y-64 Sentinel, system corruption cleaned. 01564_ K-01 Serf collects debris. 01566_ K-01 Serf cleans the Neutrino Reactor. 01567_ P-70 Sage resets Y-64 Sentinel, system corruption cleaned. 01568_ Y-64 Sentinel destroyed. 01569_ Shock Rifle destroyed. 01569_ K-01 Serf collects debris. 01569_ K-01 Serf cleans the Neutrino Reactor. 01572_ P-70 Sage resets R-10 Processor, system corruption cleaned. 01572_ K-01 Serf collects debris. 01572_ R-10 Processor destroyed. 01573_ Hardcell Cannon destroyed. Map ----- +----------------------------------------------------+ | ??????????? ???????????????????????????????????? | | ????????? #????????????????????????????????????? | | ###????? ??????????????????????????????????????? | | T ##### #????????????????????????????????????? | | #????????????????????????????????????? | | ####+####+#######????????????????????????????????? | | ???# #????????????????????????????????? | | ???# #????????????????????????????????? | | ???# #????????????????????????????????? | | ???# """ """ # ???????????????????????????????? | | ???# """ """ # ???????????????????????????????? | | ???# """ """ # ???????????????????????????????? | | ???# # ???????????????????????????????? | | ???# """ """ # ???????????????????????????????? | | ???# """ """ # ???????????????????????????????? | | ???# """ """ # ??????????????##+##????????????? | | ???# # #????????????? ##???????????? | | ???# # #???????????? ???????????? | | ???########+#####*#???????????? ????????????? | | ??????????# #???#=#???????????? ??????????? | | ??????????# #???#%##??????????? """ ""??????????? | | ????????### ###?#[%########???? """ """?????????? | | ????????# ###==## ##### """k""" """ ????? | | ????????# ###=### p p ???? | | ????????+ " !== Y%"==% ???? | | ????????# ####### !k@!= ???? | | ????????# ####### b%[%=#### #???? | | ????????#######?????###%####??? #???? | | ????????????????????###u#???????######## ????? | | ???????????????????? #??????????????????? ????? | | ???????????????????#### #????????????????????????? | | ??????????????????????# #????????????????????????? | | ??????????????????????# #????????????????????????? | | ??????????????????????# #????????????????????????? | | ??????????????????????# #????????????????????????? | | ??????????????????????? ?????????????????????????? | | ??????????????????????? ?????????????????????????? | | ??????????????????????? ?????????????????????????? | | ??????????????????????? ?????????????????????????? | | ??????????????????????? ?????????????????????????? | | ??????????????????????? ?????????????????????????? | | ??????????????????????? ?????????????????????????? | | ?????????????????????????????????????????????????? | | ?????????????????????????????????????????????????? | | ?????????????????????????????????????????????????? | | ?????????????????????????????????????????????????? | | ?????????????????????????????????????????????????? | | ?????????????????????????????????????????????????? | | ?????????????????????????????????????????????????? | | ?????????????????????????????????????????????????? | +----------------------------------------------------+ Best States ------------- Heat Dissipation 73 Energy Generation 18 Energy Capacity 150 Matter Stores 300 Matter Capacity 300 Sight Range 16 Terrain Scan Density 10 Armor Coverage 225 Resistance: TH 20 Propulsion Shielding 33 Evasion (%) 63 Targeting Accuracy 6 Target Analysis 7 Core Analysis 6 Matter Filtering 45 Item Schematics ----------------- Seismic Detector | -9/Materials | Hacked Robot Schematics ------------------ None Fabricated ------------ Hardcell Cannon | x2 | -5/Factory | Preloaded Repaired ---------- Xenon Bombardment Thruster | 10% | -6/Factory Studied --------- None Alien Tech Used ----------------- None Achievements -------------- None Challenges ------------ None Game ------ Seed CobblerReinforcedKit Manual? 0 Play Time 00:20:38 Cumulative 27.9 hours Start 2026.03.19 @ 23:36:23 End 2026.03.21 @ 14:38:15 Sessions 3 Manual Loads 0 Difficulty Rogue Special Mode None Game No. 122 Rogue 122 Adventurer 0 Explorer 0 Win Type - Total 0 Types 0/0/0/0/0/0/0/0/0/0 Lore% 35 Gallery% 26 Achievement% 34 Wizard Run 0 Options --------- Layout 0 ASCII 0 Keyboard 0 Movement Arrows Keybinds 0 Fullscreen 2 Font 18/Terminus Map View 76x50 Zoom Use 0% Tactical HUD 1 Map Filters NONE Filters NONE Steam 1 RUN: c4b0d019-fe7d-4446-9f54-be9c251d68ea